[Event "Titled Tuesday Blitz November 14 Late 2023"]
[White "Vafin, Ayrat"]
[Black "Tristan, Leonardo"]
[WhiteFideId "4146530"]
[BlackFideId "113816"]
[WhiteElo "2528"]
[BlackElo "2716"]
[Result "1-0"]
[Round "4"]
[TimeControl "180+1"]
[Date "2023.11.14"]
[WhiteClock "0:00:24"]
[BlackClock "0:00:01"]
[Board "47"]

1. Nf3 {[%clk 0:03:00]}  d5 {[%clk 0:02:59]} 2. g3 {[%clk 0:03:00]}  Nf6 {[%clk 0:02:59]} 3. Bg2 {[%clk 0:03:01]}  Bf5 {[%clk 0:02:59]} 4. O-O {[%clk 0:03:00]}  e6 {[%clk 0:02:59]} 5. c4 {[%clk 0:03:00]}  c6 {[%clk 0:02:59]} 6. d3 {[%clk 0:03:00]}  dxc4 {[%clk 0:02:57]} 7. dxc4 {[%clk 0:03:00]}  Nbd7 {[%clk 0:02:57]} 8. Nc3 {[%clk 0:02:59]}  Be7 {[%clk 0:02:57]} 9. Be3 {[%clk 0:02:57]}  O-O {[%clk 0:02:56]} 10. Qb3 {[%clk 0:02:57]}  Qc7 {[%clk 0:02:56]} 11. Nh4 {[%clk 0:02:36]}  Bg4 {[%clk 0:02:53]} 12. h3 {[%clk 0:02:34]}  Bh5 {[%clk 0:02:53]} 13. Rfd1 {[%clk 0:02:13]}  Nc5 {[%clk 0:02:44]} 14. Qc2 {[%clk 0:02:12]}  a5 {[%clk 0:02:43]} 15. g4 {[%clk 0:02:04]}  Nfd7 {[%clk 0:02:16]} 16. gxh5 {[%clk 0:01:35]}  Bxh4 {[%clk 0:02:16]} 17. h6 {[%clk 0:01:25]}  g6 {[%clk 0:02:07]} 18. b3 {[%clk 0:01:25]}  Bf6 {[%clk 0:02:07]} 19. a3 {[%clk 0:01:20]}  Qe5 {[%clk 0:01:46]} 20. Rac1 {[%clk 0:01:00]}  Rfd8 {[%clk 0:01:10]} 21. b4 {[%clk 0:00:55]}  axb4 {[%clk 0:01:10]} 22. axb4 {[%clk 0:00:56]}  Qxc3 {[%clk 0:00:46]} 23. Qxc3 {[%clk 0:00:57]}  Bxc3 {[%clk 0:00:47]} 24. Rxc3 {[%clk 0:00:57]}  Na4 {[%clk 0:00:47]} 25. Ra3 {[%clk 0:00:46]}  Nab6 {[%clk 0:00:21]} 26. Rad3 {[%clk 0:00:46]}  Nxc4 {[%clk 0:00:12]} 27. Rxd7 {[%clk 0:00:44]}  Rxd7 {[%clk 0:00:12]} 28. Rxd7 {[%clk 0:00:44]}  Nxe3 {[%clk 0:00:13]} 29. fxe3 {[%clk 0:00:44]}  Rb8 {[%clk 0:00:14]} 30. e4 {[%clk 0:00:29]}  Kf8 {[%clk 0:00:09]} 31. e5 {[%clk 0:00:29]}  Ke8 {[%clk 0:00:09]} 32. Rc7 {[%clk 0:00:30]}  Kf8 {[%clk 0:00:10]} 33. Kf2 {[%clk 0:00:29]}  Ke8 {[%clk 0:00:03]} 34. Ke3 {[%clk 0:00:29]}  Kf8 {[%clk 0:00:01]} 35. Kf4 {[%clk 0:00:29]}  Rd8 {[%clk 0:00:02]} 36. Ke3 {[%clk 0:00:26]}  b6 {[%clk 0:00:01]} 37. Bxc6 {[%clk 0:00:25]}  Rd1 {[%clk 0:00:01]} 38. Rc8+ {[%clk 0:00:24]}  Ke7 {[%clk 0:00:01]} 39. Re8# {[%clk 0:00:24]} 1-0


[Site "https://www.chess.com"]

[Event "Titled Tuesday Blitz November 14 Late 2023"]
[White "subham777"]
[Black "Rohan, Ahuja"]
[BlackFideId "5090598"]
[WhiteElo "2528"]
[BlackElo "2711"]
[Result "1-0"]
[Round "4"]
[TimeControl "180+1"]
[Date "2023.11.14"]
[WhiteClock "0:00:21"]
[BlackClock "0:00:03"]
[Board "48"]

1. e4 {[%clk 0:03:00]}  e5 {[%clk 0:02:58]} 2. Nf3 {[%clk 0:03:00]}  Nc6 {[%clk 0:02:56]} 3. Bc4 {[%clk 0:02:59]}  Bc5 {[%clk 0:02:55]} 4. c3 {[%clk 0:02:59]}  Nf6 {[%clk 0:02:56]} 5. d3 {[%clk 0:02:59]}  O-O {[%clk 0:02:53]} 6. Nbd2 {[%clk 0:02:59]}  d5 {[%clk 0:02:36]} 7. exd5 {[%clk 0:02:59]}  Nxd5 {[%clk 0:02:36]} 8. Ne4 {[%clk 0:02:58]}  Be7 {[%clk 0:02:22]} 9. Nfg5 {[%clk 0:02:52]}  h6 {[%clk 0:01:43]} 10. h4 {[%clk 0:02:43]}  Na5 {[%clk 0:01:35]} 11. Bxd5 {[%clk 0:02:33]}  Qxd5 {[%clk 0:01:36]} 12. Qf3 {[%clk 0:02:33]}  Qd7 {[%clk 0:01:25]} 13. Nh3 {[%clk 0:02:10]}  f5 {[%clk 0:01:18]} 14. Ng3 {[%clk 0:02:03]}  Nc6 {[%clk 0:01:08]} 15. Qh5 {[%clk 0:01:38]}  Qe8 {[%clk 0:01:04]} 16. Qf3 {[%clk 0:01:35]}  Qg6 {[%clk 0:00:50]} 17. h5 {[%clk 0:01:28]}  Qf7 {[%clk 0:00:51]} 18. Be3 {[%clk 0:01:20]}  f4 {[%clk 0:00:48]} 19. Ne4 {[%clk 0:01:10]}  fxe3 {[%clk 0:00:45]} 20. Qxe3 {[%clk 0:01:10]}  Bf5 {[%clk 0:00:45]} 21. O-O-O {[%clk 0:01:05]}  Rad8 {[%clk 0:00:46]} 22. Kb1 {[%clk 0:01:04]}  Be6 {[%clk 0:00:45]} 23. c4 {[%clk 0:01:00]}  Nd4 {[%clk 0:00:43]} 24. Rhf1 {[%clk 0:00:58]}  Bg4 {[%clk 0:00:41]} 25. f3 {[%clk 0:00:56]}  Bxh5 {[%clk 0:00:37]} 26. g4 {[%clk 0:00:54]}  Bg6 {[%clk 0:00:37]} 27. f4 {[%clk 0:00:54]}  exf4 {[%clk 0:00:34]} 28. Nxf4 {[%clk 0:00:51]}  Bxe4 {[%clk 0:00:20]} 29. Qxe4 {[%clk 0:00:47]}  Bf6 {[%clk 0:00:18]} 30. Nd5 {[%clk 0:00:45]}  Nc6 {[%clk 0:00:14]} 31. g5 {[%clk 0:00:43]}  hxg5 {[%clk 0:00:10]} 32. Rh1 {[%clk 0:00:43]}  g6 {[%clk 0:00:09]} 33. Rh6 {[%clk 0:00:43]}  Bg7 {[%clk 0:00:08]} 34. Rxg6 {[%clk 0:00:41]}  Ne5 {[%clk 0:00:06]} 35. Rxg5 {[%clk 0:00:36]}  Rd6 {[%clk 0:00:04]} 36. Qxe5 {[%clk 0:00:33]}  Rg6 {[%clk 0:00:03]} 37. Ne7+ {[%clk 0:00:29]}  Kh7 {[%clk 0:00:02]} 38. Qe4 {[%clk 0:00:28]}  Qf6 {[%clk 0:00:02]} 39. Qxg6+ {[%clk 0:00:22]}  Qxg6 {[%clk 0:00:03]} 40. Rxg6 {[%clk 0:00:22]}  Bh6 {[%clk 0:00:03]} 41. Rh1 {[%clk 0:00:22]}  Rf4 {[%clk 0:00:03]} 42. Rhxh6# {[%clk 0:00:21]} 1-0


[Site "https://www.chess.com"]

[Event "Titled Tuesday Blitz November 14 Late 2023"]
[White "Zeltsan, Joseph"]
[Black "Statham_l3"]
[WhiteFideId "30932980"]
[WhiteElo "2709"]
[BlackElo "2524"]
[Result "1-0"]
[Round "4"]
[TimeControl "180+1"]
[Date "2023.11.14"]
[WhiteClock "0:01:02"]
[BlackClock "0:00:00"]
[Board "49"]

1. e4 {[%clk 0:03:00]}  e5 {[%clk 0:02:59]} 2. Nf3 {[%clk 0:03:00]}  Nc6 {[%clk 0:02:59]} 3. Bb5 {[%clk 0:03:00]}  Nf6 {[%clk 0:02:56]} 4. O-O {[%clk 0:02:59]}  Nxe4 {[%clk 0:02:56]} 5. d4 {[%clk 0:02:58]}  Nd6 {[%clk 0:02:55]} 6. Bxc6 {[%clk 0:02:59]}  dxc6 {[%clk 0:02:56]} 7. dxe5 {[%clk 0:03:00]}  Nf5 {[%clk 0:02:56]} 8. Qxd8+ {[%clk 0:03:01]}  Kxd8 {[%clk 0:02:57]} 9. Nc3 {[%clk 0:03:02]}  Ke8 {[%clk 0:02:57]} 10. h3 {[%clk 0:03:01]}  h5 {[%clk 0:02:57]} 11. Bf4 {[%clk 0:03:01]}  Be6 {[%clk 0:02:53]} 12. Rad1 {[%clk 0:03:01]}  Be7 {[%clk 0:02:51]} 13. Ng5 {[%clk 0:03:01]}  Rh6 {[%clk 0:02:37]} 14. Rfe1 {[%clk 0:02:56]}  Rd8 {[%clk 0:02:31]} 15. Rxd8+ {[%clk 0:02:53]}  Bxd8 {[%clk 0:02:14]} 16. Rd1 {[%clk 0:02:42]}  Rg6 {[%clk 0:01:59]} 17. Nxe6 {[%clk 0:02:40]}  Rxe6 {[%clk 0:01:54]} 18. g3 {[%clk 0:02:12]}  g5 {[%clk 0:01:43]} 19. Rxd8+ {[%clk 0:02:12]}  Kxd8 {[%clk 0:01:44]} 20. Bxg5+ {[%clk 0:02:13]}  Ke8 {[%clk 0:01:13]} 21. Bf6 {[%clk 0:02:07]}  Nd4 {[%clk 0:01:05]} 22. f4 {[%clk 0:02:03]}  Nxc2 {[%clk 0:00:51]} 23. f5 {[%clk 0:01:17]}  Rxf6 {[%clk 0:00:51]} 24. exf6 {[%clk 0:01:17]}  Ne3 {[%clk 0:00:49]} 25. Kf2 {[%clk 0:01:17]}  Nxf5 {[%clk 0:00:48]} 26. Ne4 {[%clk 0:01:15]}  b6 {[%clk 0:00:41]} 27. Ng5 {[%clk 0:01:14]}  a5 {[%clk 0:00:27]} 28. Kf3 {[%clk 0:01:13]}  a4 {[%clk 0:00:20]} 29. g4 {[%clk 0:01:01]}  hxg4+ {[%clk 0:00:00]} 30. Kxg4 {[%clk 0:01:02]} 1-0


[Site "https://www.chess.com"]

[Event "Titled Tuesday Blitz November 14 Late 2023"]
[White "Richter, Paul"]
[Black "Hamitevici, Vladimir"]
[WhiteFideId "2046350"]
[BlackFideId "13902393"]
[WhiteElo "2523"]
[BlackElo "2701"]
[Result "1-0"]
[Round "4"]
[TimeControl "180+1"]
[Date "2023.11.14"]
[WhiteClock "0:00:02"]
[BlackClock "0:00:00"]
[Board "50"]

1. e4 {[%clk 0:03:00]}  d6 {[%clk 0:02:58]} 2. d4 {[%clk 0:03:00]}  g6 {[%clk 0:02:57]} 3. Nc3 {[%clk 0:03:00]}  c6 {[%clk 0:02:58]} 4. f4 {[%clk 0:03:01]}  d5 {[%clk 0:02:58]} 5. e5 {[%clk 0:03:00]}  h5 {[%clk 0:02:58]} 6. Be3 {[%clk 0:02:59]}  Nh6 {[%clk 0:02:58]} 7. Qd2 {[%clk 0:02:59]}  Ng4 {[%clk 0:02:54]} 8. h3 {[%clk 0:02:46]}  Nxe3 {[%clk 0:02:51]} 9. Qxe3 {[%clk 0:02:47]}  Bf5 {[%clk 0:02:46]} 10. Nf3 {[%clk 0:02:46]}  Bxc2 {[%clk 0:02:40]} 11. e6 {[%clk 0:02:20]}  f6 {[%clk 0:02:29]} 12. Rc1 {[%clk 0:02:08]}  Bf5 {[%clk 0:02:17]} 13. Nh4 {[%clk 0:02:05]}  Qd6 {[%clk 0:02:09]} 14. Nxf5 {[%clk 0:01:53]}  gxf5 {[%clk 0:02:10]} 15. Bd3 {[%clk 0:01:41]}  Bh6 {[%clk 0:02:10]} 16. O-O {[%clk 0:01:40]}  h4 {[%clk 0:01:43]} 17. Bxf5 {[%clk 0:01:30]}  Rg8 {[%clk 0:01:42]} 18. Nb5 {[%clk 0:00:59]}  Qd8 {[%clk 0:01:40]} 19. Qf3 {[%clk 0:00:59]}  Qb6 {[%clk 0:01:25]} 20. Qh5+ {[%clk 0:00:14]}  Kd8 {[%clk 0:01:26]} 21. Qxh6 {[%clk 0:00:13]}  Qxb5 {[%clk 0:01:15]} 22. Qh7 {[%clk 0:00:12]}  Rg3 {[%clk 0:01:11]} 23. Qf7 {[%clk 0:00:07]}  Qb4 {[%clk 0:01:09]} 24. Kh1 {[%clk 0:00:05]}  Kc7 {[%clk 0:01:01]} 25. Rc3 {[%clk 0:00:03]}  Na6 {[%clk 0:00:56]} 26. a3 {[%clk 0:00:03]}  Qd6 {[%clk 0:00:53]} 27. Rxg3 {[%clk 0:00:04]}  hxg3 {[%clk 0:00:54]} 28. b4 {[%clk 0:00:04]}  Rh8 {[%clk 0:00:52]} 29. Kg1 {[%clk 0:00:03]}  Rh4 {[%clk 0:00:51]} 30. Bg4 {[%clk 0:00:03]}  Kb6 {[%clk 0:00:49]} 31. f5 {[%clk 0:00:03]}  Nc7 {[%clk 0:00:47]} 32. Qf8 {[%clk 0:00:03]}  Nb5 {[%clk 0:00:44]} 33. a4 {[%clk 0:00:03]}  Nc7 {[%clk 0:00:40]} 34. a5+ {[%clk 0:00:03]}  Kb5 {[%clk 0:00:39]} 35. Rb1 {[%clk 0:00:03]}  Kc4 {[%clk 0:00:32]} 36. Be2+ {[%clk 0:00:02]}  Kxd4 {[%clk 0:00:31]} 37. Qg8 {[%clk 0:00:03]}  Re4 {[%clk 0:00:26]} 38. Bf3 {[%clk 0:00:03]}  Re3 {[%clk 0:00:21]} 39. Qg4+ {[%clk 0:00:03]}  Kc3 {[%clk 0:00:20]} 40. Rc1+ {[%clk 0:00:03]}  Kb2 {[%clk 0:00:16]} 41. Rd1 {[%clk 0:00:04]}  Qe5 {[%clk 0:00:16]} 42. Rf1 {[%clk 0:00:02]}  d4 {[%clk 0:00:14]} 43. Bd1 {[%clk 0:00:02]}  d3 {[%clk 0:00:14]} 44. h4 {[%clk 0:00:02]}  Nd5 {[%clk 0:00:08]} 45. h5 {[%clk 0:00:02]}  Nf4 {[%clk 0:00:03]} 46. h6 {[%clk 0:00:02]}  Ne2+ {[%clk 0:00:02]} 47. Kh1 {[%clk 0:00:02]}  Re4 {[%clk 0:00:00]} 48. Qh3 {[%clk 0:00:02]} 1-0


[Site "https://www.chess.com"]

[Event "Titled Tuesday Blitz November 14 Late 2023"]
[White "Shuvalova, Polina"]
[Black "Kovacsy, Barnabas"]
[WhiteFideId "24171760"]
[BlackFideId "769290"]
[WhiteElo "2692"]
[BlackElo "2519"]
[Result "1-0"]
[Round "4"]
[TimeControl "180+1"]
[Date "2023.11.14"]
[WhiteClock "0:00:36"]
[BlackClock "0:00:11"]
[Board "52"]

1. e4 {[%clk 0:03:00]}  c5 {[%clk 0:02:59]} 2. Nf3 {[%clk 0:03:01]}  e6 {[%clk 0:02:59]} 3. c3 {[%clk 0:03:01]}  d5 {[%clk 0:02:55]} 4. exd5 {[%clk 0:03:01]}  Qxd5 {[%clk 0:02:55]} 5. d4 {[%clk 0:03:02]}  Nf6 {[%clk 0:02:55]} 6. Na3 {[%clk 0:03:02]}  Nc6 {[%clk 0:02:55]} 7. Be3 {[%clk 0:02:50]}  cxd4 {[%clk 0:02:51]} 8. Nb5 {[%clk 0:02:49]}  Qd7 {[%clk 0:02:49]} 9. Nbxd4 {[%clk 0:02:46]}  Nd5 {[%clk 0:02:44]} 10. Bd2 {[%clk 0:02:38]}  Be7 {[%clk 0:02:33]} 11. Bb5 {[%clk 0:02:34]}  Qc7 {[%clk 0:01:59]} 12. Nxc6 {[%clk 0:02:27]}  bxc6 {[%clk 0:01:58]} 13. Bd3 {[%clk 0:02:28]}  Nf4 {[%clk 0:01:47]} 14. Bxf4 {[%clk 0:02:21]}  Qxf4 {[%clk 0:01:47]} 15. O-O {[%clk 0:02:22]}  O-O {[%clk 0:01:47]} 16. Qe2 {[%clk 0:02:21]}  Bb7 {[%clk 0:01:37]} 17. g3 {[%clk 0:02:19]}  Qc7 {[%clk 0:01:29]} 18. Rad1 {[%clk 0:02:18]}  Rad8 {[%clk 0:01:27]} 19. Rfe1 {[%clk 0:02:18]}  c5 {[%clk 0:01:19]} 20. Be4 {[%clk 0:02:17]}  Bxe4 {[%clk 0:01:16]} 21. Qxe4 {[%clk 0:02:17]}  Qb6 {[%clk 0:01:13]} 22. b3 {[%clk 0:02:10]}  Bf6 {[%clk 0:01:10]} 23. c4 {[%clk 0:02:05]}  a5 {[%clk 0:01:03]} 24. Kg2 {[%clk 0:02:03]}  a4 {[%clk 0:00:58]} 25. bxa4 {[%clk 0:01:59]}  Qb4 {[%clk 0:00:57]} 26. Rxd8 {[%clk 0:01:36]}  Rxd8 {[%clk 0:00:56]} 27. Qc2 {[%clk 0:01:27]}  Ra8 {[%clk 0:00:52]} 28. Rb1 {[%clk 0:01:26]}  Qa5 {[%clk 0:00:44]} 29. Rb5 {[%clk 0:01:25]}  Qc7 {[%clk 0:00:44]} 30. Qe4 {[%clk 0:01:12]}  Rxa4 {[%clk 0:00:38]} 31. Rb7 {[%clk 0:01:08]}  Qd8 {[%clk 0:00:31]} 32. Qc6 {[%clk 0:00:59]}  Rxa2 {[%clk 0:00:24]} 33. Qxc5 {[%clk 0:00:59]}  Ra8 {[%clk 0:00:23]} 34. h4 {[%clk 0:00:57]}  Rc8 {[%clk 0:00:23]} 35. Qb5 {[%clk 0:00:55]}  g6 {[%clk 0:00:22]} 36. h5 {[%clk 0:00:52]}  gxh5 {[%clk 0:00:20]} 37. Qxh5 {[%clk 0:00:51]}  Qe8 {[%clk 0:00:19]} 38. c5 {[%clk 0:00:48]}  Rb8 {[%clk 0:00:14]} 39. Qg4+ {[%clk 0:00:46]}  Bg7 {[%clk 0:00:13]} 40. Rxb8 {[%clk 0:00:40]}  Qxb8 {[%clk 0:00:14]} 41. c6 {[%clk 0:00:41]}  Qc7 {[%clk 0:00:14]} 42. Qa4 {[%clk 0:00:40]}  Bf6 {[%clk 0:00:14]} 43. Qa8+ {[%clk 0:00:39]}  Kg7 {[%clk 0:00:14]} 44. Qb7 {[%clk 0:00:38]}  Be5 {[%clk 0:00:14]} 45. Nxe5 {[%clk 0:00:35]}  Qxe5 {[%clk 0:00:11]} 46. c7 {[%clk 0:00:36]} 1-0


[Site "https://www.chess.com"]

[Event "Titled Tuesday Blitz November 14 Late 2023"]
[White "Bjelobrk, Igor"]
[Black "Ponce Cano, Adrian"]
[WhiteFideId "4300726"]
[BlackFideId "22296913"]
[WhiteElo "2672"]
[BlackElo "2517"]
[Result "1/2-1/2"]
[Round "4"]
[TimeControl "180+1"]
[Date "2023.11.14"]
[WhiteClock "0:01:14"]
[BlackClock "0:00:21"]
[Board "54"]

1. d4 {[%clk 0:02:56]}  d5 {[%clk 0:02:52]} 2. c4 {[%clk 0:02:56]}  c6 {[%clk 0:02:50]} 3. Nf3 {[%clk 0:02:56]}  Nf6 {[%clk 0:02:50]} 4. Qc2 {[%clk 0:02:55]}  e6 {[%clk 0:02:30]} 5. g3 {[%clk 0:02:54]}  Nbd7 {[%clk 0:02:27]} 6. Bg2 {[%clk 0:02:51]}  dxc4 {[%clk 0:02:23]} 7. Qxc4 {[%clk 0:02:50]}  Bd6 {[%clk 0:02:22]} 8. O-O {[%clk 0:02:49]}  O-O {[%clk 0:02:21]} 9. Rd1 {[%clk 0:02:40]}  h6 {[%clk 0:02:06]} 10. Qc2 {[%clk 0:02:39]}  Qe7 {[%clk 0:01:56]} 11. Nc3 {[%clk 0:02:38]}  e5 {[%clk 0:01:53]} 12. e4 {[%clk 0:02:38]}  exd4 {[%clk 0:01:35]} 13. Nxd4 {[%clk 0:02:34]}  Ne5 {[%clk 0:01:36]} 14. h3 {[%clk 0:02:32]}  Bc5 {[%clk 0:01:32]} 15. Nce2 {[%clk 0:02:24]}  Rd8 {[%clk 0:01:27]} 16. f4 {[%clk 0:02:17]}  Ng6 {[%clk 0:01:19]} 17. e5 {[%clk 0:02:10]}  Nd5 {[%clk 0:01:18]} 18. Kh2 {[%clk 0:02:02]}  Bb6 {[%clk 0:01:08]} 19. Nf5 {[%clk 0:01:50]}  Bxf5 {[%clk 0:01:05]} 20. Qxf5 {[%clk 0:01:51]}  Ne3 {[%clk 0:01:04]} 21. Bxe3 {[%clk 0:01:50]}  Bxe3 {[%clk 0:01:05]} 22. Rd3 {[%clk 0:01:39]}  Rxd3 {[%clk 0:00:59]} 23. Qxd3 {[%clk 0:01:40]}  Bb6 {[%clk 0:00:58]} 24. Rd1 {[%clk 0:01:33]}  Rd8 {[%clk 0:00:56]} 25. Qc2 {[%clk 0:01:32]}  Rxd1 {[%clk 0:00:55]} 26. Qxd1 {[%clk 0:01:33]}  Qb4 {[%clk 0:00:50]} 27. Qc2 {[%clk 0:01:29]}  Qe1 {[%clk 0:00:44]} 28. h4 {[%clk 0:01:21]}  Nxh4 {[%clk 0:00:23]} 29. gxh4 {[%clk 0:01:15]}  Qxh4+ {[%clk 0:00:24]} 30. Bh3 {[%clk 0:01:15]}  Qf2+ {[%clk 0:00:21]} 31. Bg2 {[%clk 0:01:14]}  Qh4+ {[%clk 0:00:20]} 32. Bh3 {[%clk 0:01:14]}  Qf2+ {[%clk 0:00:20]} 33. Bg2 {[%clk 0:01:14]}  Qh4+ {[%clk 0:00:21]} 1/2-1/2


[Site "https://www.chess.com"]

[Event "Titled Tuesday Blitz November 14 Late 2023"]
[White "JackRodgers"]
[Black "Luczak, Filip"]
[BlackFideId "1193686"]
[WhiteElo "2515"]
[BlackElo "2664"]
[Result "0-1"]
[Round "4"]
[TimeControl "180+1"]
[Date "2023.11.14"]
[WhiteClock "0:00:02"]
[BlackClock "0:00:22"]
[Board "55"]

1. d4 {[%clk 0:03:00]}  g6 {[%clk 0:02:39]} 2. h4 {[%clk 0:02:59]}  Bg7 {[%clk 0:02:38]} 3. h5 {[%clk 0:02:59]}  c5 {[%clk 0:02:39]} 4. hxg6 {[%clk 0:02:58]}  hxg6 {[%clk 0:02:39]} 5. Rxh8 {[%clk 0:02:57]}  Bxh8 {[%clk 0:02:40]} 6. c3 {[%clk 0:02:58]}  cxd4 {[%clk 0:02:38]} 7. cxd4 {[%clk 0:02:59]}  Nc6 {[%clk 0:02:38]} 8. Nf3 {[%clk 0:02:58]}  d6 {[%clk 0:02:36]} 9. Nc3 {[%clk 0:02:56]}  Bg4 {[%clk 0:02:35]} 10. e3 {[%clk 0:02:56]}  Qd7 {[%clk 0:02:34]} 11. Be2 {[%clk 0:02:53]}  Nf6 {[%clk 0:02:34]} 12. Bd2 {[%clk 0:02:53]}  Kf8 {[%clk 0:02:27]} 13. Qb3 {[%clk 0:02:48]}  a6 {[%clk 0:02:24]} 14. O-O-O {[%clk 0:02:46]}  Bf5 {[%clk 0:02:22]} 15. Rh1 {[%clk 0:02:41]}  Bg7 {[%clk 0:02:21]} 16. Ng5 {[%clk 0:02:30]}  d5 {[%clk 0:02:20]} 17. f3 {[%clk 0:02:16]}  Rc8 {[%clk 0:02:18]} 18. g4 {[%clk 0:02:10]}  Be6 {[%clk 0:02:16]} 19. Nxe6+ {[%clk 0:02:07]}  Qxe6 {[%clk 0:02:15]} 20. Qxb7 {[%clk 0:01:59]}  Ne8 {[%clk 0:02:15]} 21. Qxa6 {[%clk 0:01:50]}  Nc7 {[%clk 0:01:45]} 22. Qa4 {[%clk 0:01:17]}  Ra8 {[%clk 0:01:43]} 23. Qb3 {[%clk 0:01:11]}  Rb8 {[%clk 0:01:41]} 24. Qd1 {[%clk 0:01:04]}  Ne8 {[%clk 0:01:37]} 25. Qa4 {[%clk 0:00:51]}  Rb4 {[%clk 0:01:28]} 26. Qa3 {[%clk 0:00:45]}  Nd6 {[%clk 0:01:28]} 27. Qa8+ {[%clk 0:00:30]}  Nc8 {[%clk 0:01:19]} 28. Bb5 {[%clk 0:00:29]}  Na7 {[%clk 0:01:11]} 29. Ba6 {[%clk 0:00:26]}  Qxa6 {[%clk 0:01:09]} 30. Qxd5 {[%clk 0:00:24]}  Nd6 {[%clk 0:00:58]} 31. Qa8+ {[%clk 0:00:19]}  Ndc8 {[%clk 0:00:56]} 32. a3 {[%clk 0:00:15]}  Rc4 {[%clk 0:00:53]} 33. Qe4 {[%clk 0:00:12]}  Nd6 {[%clk 0:00:52]} 34. Qc2 {[%clk 0:00:11]}  Nab5 {[%clk 0:00:48]} 35. Qb3 {[%clk 0:00:08]}  Qc6 {[%clk 0:00:37]} 36. Kb1 {[%clk 0:00:08]}  Nxc3+ {[%clk 0:00:35]} 37. Bxc3 {[%clk 0:00:08]}  Qxf3 {[%clk 0:00:35]} 38. Re1 {[%clk 0:00:07]}  Qxg4 {[%clk 0:00:34]} 39. a4 {[%clk 0:00:06]}  Qe4+ {[%clk 0:00:34]} 40. Ka2 {[%clk 0:00:06]}  Qd5 {[%clk 0:00:32]} 41. Kb1 {[%clk 0:00:05]}  Qc6 {[%clk 0:00:26]} 42. a5 {[%clk 0:00:04]}  g5 {[%clk 0:00:26]} 43. e4 {[%clk 0:00:03]}  Bxd4 {[%clk 0:00:24]} 44. Bxd4 {[%clk 0:00:02]}  Rxd4 {[%clk 0:00:25]} 45. e5 {[%clk 0:00:02]}  Nc4 {[%clk 0:00:22]} 46. Qb8+ {[%clk 0:00:01]}  Kg7 {[%clk 0:00:22]} 47. e6 {[%clk 0:00:02]}  Nd2+ {[%clk 0:00:22]} 48. Ka2 {[%clk 0:00:02]}  Qa4# {[%clk 0:00:22]} 0-1


[Site "https://www.chess.com"]

[Event "Titled Tuesday Blitz November 14 Late 2023"]
[White "Sztokbant, Bernardo Vainzoff"]
[Black "Martinez Ramirez, Lennis"]
[WhiteFideId "2115956"]
[BlackFideId "3509079"]
[WhiteElo "2496"]
[BlackElo "2651"]
[Result "1-0"]
[Round "4"]
[TimeControl "180+1"]
[Date "2023.11.14"]
[WhiteClock "0:00:10"]
[BlackClock "0:00:15"]
[Board "57"]

1. e4 {[%clk 0:03:00]}  e5 {[%clk 0:02:55]} 2. f4 {[%clk 0:02:59]}  d5 {[%clk 0:02:54]} 3. exd5 {[%clk 0:02:57]}  e4 {[%clk 0:02:55]} 4. d3 {[%clk 0:02:50]}  Qxd5 {[%clk 0:02:51]} 5. dxe4 {[%clk 0:02:48]}  Qxe4+ {[%clk 0:02:50]} 6. Qe2 {[%clk 0:02:48]}  Qxe2+ {[%clk 0:02:50]} 7. Bxe2 {[%clk 0:02:48]}  Nc6 {[%clk 0:02:48]} 8. Nf3 {[%clk 0:02:47]}  Bc5 {[%clk 0:02:42]} 9. Nc3 {[%clk 0:02:39]}  Nf6 {[%clk 0:02:40]} 10. Bd2 {[%clk 0:02:36]}  Bf5 {[%clk 0:02:35]} 11. O-O-O {[%clk 0:02:36]}  O-O-O {[%clk 0:02:32]} 12. h3 {[%clk 0:02:34]}  Nb4 {[%clk 0:02:30]} 13. Ne5 {[%clk 0:02:24]}  Bxc2 {[%clk 0:02:28]} 14. Nxf7 {[%clk 0:02:18]}  Bxd1 {[%clk 0:01:35]} 15. Rxd1 {[%clk 0:02:19]}  Rhe8 {[%clk 0:01:02]} 16. Nxd8 {[%clk 0:02:18]}  Rxd8 {[%clk 0:00:59]} 17. a3 {[%clk 0:02:09]}  Nd3+ {[%clk 0:00:56]} 18. Kc2 {[%clk 0:02:06]}  Nf2 {[%clk 0:00:52]} 19. Re1 {[%clk 0:01:57]}  c6 {[%clk 0:00:34]} 20. Bf3 {[%clk 0:01:30]}  Nd3 {[%clk 0:00:32]} 21. Re6 {[%clk 0:01:26]}  Nxb2 {[%clk 0:00:25]} 22. Bc1 {[%clk 0:01:14]}  Nc4 {[%clk 0:00:24]} 23. Bxc6 {[%clk 0:01:08]}  Bxa3 {[%clk 0:00:16]} 24. Bxa3 {[%clk 0:00:33]}  Nxa3+ {[%clk 0:00:17]} 25. Kb3 {[%clk 0:00:34]}  Rd3 {[%clk 0:00:17]} 26. Bf3 {[%clk 0:00:24]}  Nb5 {[%clk 0:00:16]} 27. Kc4 {[%clk 0:00:24]}  Rxc3+ {[%clk 0:00:11]} 28. Kxb5 {[%clk 0:00:24]}  Rc7 {[%clk 0:00:11]} 29. g4 {[%clk 0:00:23]}  Rf7 {[%clk 0:00:08]} 30. f5 {[%clk 0:00:19]}  Nd7 {[%clk 0:00:08]} 31. Bd5 {[%clk 0:00:10]}  Kc7 {[%clk 0:00:04]} 32. h4 {[%clk 0:00:07]}  a6+ {[%clk 0:00:04]} 33. Kb4 {[%clk 0:00:06]}  Rf8 {[%clk 0:00:03]} 34. Re7 {[%clk 0:00:06]}  Kd6 {[%clk 0:00:03]} 35. Rxg7 {[%clk 0:00:06]}  Rb8 {[%clk 0:00:03]} 36. Be6 {[%clk 0:00:05]}  Nc5 {[%clk 0:00:03]} 37. Rxh7 {[%clk 0:00:05]}  b5 {[%clk 0:00:03]} 38. h5 {[%clk 0:00:02]}  Nd3+ {[%clk 0:00:03]} 39. Kc3 {[%clk 0:00:03]}  Ne5 {[%clk 0:00:03]} 40. g5 {[%clk 0:00:03]}  b4+ {[%clk 0:00:04]} 41. Kb2 {[%clk 0:00:03]}  a5 {[%clk 0:00:03]} 42. h6 {[%clk 0:00:03]}  a4 {[%clk 0:00:03]} 43. Ra7 {[%clk 0:00:03]}  Nd3+ {[%clk 0:00:03]} 44. Kc2 {[%clk 0:00:03]}  b3+ {[%clk 0:00:04]} 45. Kxd3 {[%clk 0:00:03]}  b2 {[%clk 0:00:04]} 46. Ba2 {[%clk 0:00:04]}  Rb3+ {[%clk 0:00:04]} 47. Kc2 {[%clk 0:00:03]}  Ra3 {[%clk 0:00:05]} 48. Kxb2 {[%clk 0:00:03]}  Rg3 {[%clk 0:00:05]} 49. Rxa4 {[%clk 0:00:03]}  Rg2+ {[%clk 0:00:06]} 50. Ka3 {[%clk 0:00:03]}  Rxg5 {[%clk 0:00:07]} 51. h7 {[%clk 0:00:03]}  Rh5 {[%clk 0:00:08]} 52. Ra7 {[%clk 0:00:03]}  Rh3+ {[%clk 0:00:07]} 53. Bb3 {[%clk 0:00:03]}  Ke5 {[%clk 0:00:07]} 54. Rf7 {[%clk 0:00:03]}  Kf4 {[%clk 0:00:07]} 55. Kb4 {[%clk 0:00:03]}  Kg5 {[%clk 0:00:07]} 56. Rg7+ {[%clk 0:00:03]}  Kf6 {[%clk 0:00:07]} 57. Rf7+ {[%clk 0:00:03]}  Ke5 {[%clk 0:00:07]} 58. Kc5 {[%clk 0:00:03]}  Rxb3 {[%clk 0:00:07]} 59. h8=Q+ {[%clk 0:00:03]}  Ke4 {[%clk 0:00:07]} 60. Qe8+ {[%clk 0:00:03]}  Kd3 {[%clk 0:00:07]} 61. Kd6 {[%clk 0:00:04]}  Rb4 {[%clk 0:00:07]} 62. Ke7 {[%clk 0:00:04]}  Re4+ {[%clk 0:00:07]} 63. Kf8 {[%clk 0:00:04]}  Rxe8+ {[%clk 0:00:07]} 64. Kxe8 {[%clk 0:00:05]}  Kd4 {[%clk 0:00:08]} 65. f6 {[%clk 0:00:06]}  Kd5 {[%clk 0:00:08]} 66. Re7 {[%clk 0:00:06]}  Kd6 {[%clk 0:00:09]} 67. f7 {[%clk 0:00:07]}  Kc6 {[%clk 0:00:10]} 68. f8=Q {[%clk 0:00:08]}  Kc5 {[%clk 0:00:11]} 69. Qf6 {[%clk 0:00:09]}  Kc4 {[%clk 0:00:12]} 70. Re5 {[%clk 0:00:09]}  Kc3 {[%clk 0:00:13]} 71. Qf4 {[%clk 0:00:10]}  Kc2 {[%clk 0:00:14]} 72. Rc5+ {[%clk 0:00:10]}  Kb2 {[%clk 0:00:15]} 73. Qb4+ {[%clk 0:00:10]}  Ka1 {[%clk 0:00:15]} 74. Ra5# {[%clk 0:00:10]} 1-0


[Site "https://www.chess.com"]